[Event "8th Ali Ipek Tournament 2020"]
[Site "Ankara"]
[Date "2020.03.04"]
[Round "1.12"]
[White "Ozates, Mert"]
[Black "Ozer, Nazlican"]
[Result "1-0"]
[ECO "C92"]
[WhiteElo "1810"]
[BlackElo "1474"]
[Annotator "NA RC"]
[PlyCount "69"]
[EventDate "2020.03.04"]
[EventType "swiss"]
[EventCountry "TUR"]
[SourceTitle "playchess.com"]
[Source "ChessBase"]
[SourceQuality "1"]
[TimeControl "5400+30"]

{[%evp 10,68,28,32767,32767,32767,32767,32767,32767,30,40,33,58,53,25,29,68,76,75,91,90,75,32767,77,79,71,140,96,99,32767,87,87,102,32767,32767,32767,32767,8,13,32767,95,32767,-11,-85,-42,-83,-45,-145,-156,-303,-317,-390,0,0,347,161,162,151,1123,917,29999]} 1. e4 {[%emt 0:00:30]} e5 {[%emt 0:00:30]} 2. Nf3 {[%emt 0:00:30]} Nc6 {[%emt 0:00:00]} 3. Bb5 {[%emt 0:00:00]} a6 {[%emt 0:00:00]} 4. Ba4 {[%emt 0:00:00]} Nf6 {[%emt 0:01:30]} 5. O-O {[%emt 0:00:00]} Be7 {[%emt 0:01:30]} 6. Re1 {[%emt 0:00:00]} b5 {[%emt 0:00:00]} 7. Bb3 {[%emt 0:00:00]} O-O {[%emt 0:01:00]} 8. h3 {[%emt 0:00:00]} d6 {[%emt 0:04:30]} 9. c3 {[%emt 0:00:30]} Bb7 {[%emt 0:00:30] 9...Nb8 is setting a new trend. Played by Liren Ding in December 2019.} 10. d4 {[%emt 0:00:30]} Rc8 {[%emt 0:03:30] C92: Closed Ruy Lopez: 9...Be6, Karpov and Flohr-Zaitsev Variations.} 11. Nbd2 {[%emt 0:05:30]} exd4 {[%emt 0:03:30]} 12. cxd4 {[%emt 0:00:30]} Na5 {[%emt 0:03:30] [#]} 13. Bc2 $1 {[%emt 0:00:30]} c5 {[%emt 0:01:30]} 14. d5 {[%emt 0:01:30]} Re8 {[%emt 0:03:30]} 15. b3 {[%emt 0:07:30] [#]} Nd7 $146 {[%emt 0:01:30]} ({Predecessor:} 15... g6 16. Rb1 Bf8 17. Nf1 Bg7 18. Bb2 Rc7 19. Qd2 Rce7 20. Ng3 Bc8 21. Bc3 b4 {½-½ (41) Valinova,J (2361)-Nedoma,P (2403) ICCF email 2010}) 16. Nf1 {[%emt 0:02:30]} Bf6 {[%emt 0:06:30]} 17. Rb1 {[%emt 0:00:30]} Ba8 {[%emt 0:04:30]} (17... Ne5 $142) 18. Ng3 {[%emt 0:04:30]} g6 {[%emt 0:04:30]} 19. Bf4 {[%emt 0:10:30]} Qc7 {[%emt 0:05:30]} 20. Qd2 {[%emt 0:08:30]} b4 {[%emt 0:04:30]} 21. Qd3 {[%emt 0:05:30]} c4 {[%emt 0:02:30]} 22. bxc4 {[%emt 0:00:30]} Nxc4 {[%emt 0:00:30]} 23. Bb3 {[%emt 0:14:30]} Na3 {[%emt 0:05:30]} 24. Rbc1 {[%emt 0:08:30]} Bc3 {[%emt 0:00:30]} (24... Nc5 $11 {remains equal.} 25. Rxc5 Qxc5) 25. Rf1 {[%emt 0:06:30]} Nc5 {[%emt 0:00:30]} 26. Qe2 {[%emt 0:03:30]} (26. Rxc3 $11 {remains equal.} bxc3 27. Qxc3) 26... Nxb3 {[%emt 0:03:30]} 27. axb3 {[%emt 0:00:30]} Bxd5 {[%emt 0:00:00] Pin} 28. Qxa6 {[%emt 0:01:48]} ({Better is} 28. Nd4) 28... Bxb3 {[%emt 0:01:00]} 29. Rxc3 {[%emt 0:06:50]} (29. Bxd6 $17 Qc4 30. Qa5) 29... Qxc3 {[%emt 0:01:30]} 30. Qxd6 {[%emt 0:01:10]} Red8 $2 {[%emt 0:01:30]} ({Black should play} 30... Rcd8 $19 31. Qb6 Nc4) 31. Qe7 {[%emt 0:01:27]} Rd1 $2 {[%emt 0:01:30]} (31... Re8 $11 {and Black has nothing to worry.} 32. Qh4 Bc2) 32. Be5 {[%emt 0:02:10]} (32. Rxd1 $142 Bxd1 33. Ne5) 32... Rxf1+ {[%emt 0:01:30]} 33. Nxf1 {[%emt 0:00:10]} Qc5 $2 {[%emt 0:05:30]} (33... Qc6) 34. Qf6 {[%emt 0:01:32]} Qf8 {[%emt 0:00:30]} 35. Qh8# {[%emt 0:00:49]} 1-0

[Event "8th Ali Ipek Tournament 2020"]
[Site "Ankara"]
[Date "2020.03.04"]
[Round "1.14"]
[White "Alkan, Omer Tarik"]
[Black "Korkut, Kadri"]
[Result "1-0"]
[ECO "B21"]
[WhiteElo "1757"]
[BlackElo "1368"]
[Annotator "NA RC"]
[PlyCount "75"]
[EventDate "2020.03.04"]
[EventType "swiss"]
[EventCountry "TUR"]
[SourceTitle "playchess.com"]
[Source "ChessBase"]
[SourceQuality "1"]
[TimeControl "5400+30"]

1. e4 {[%emt 0:00:30]} c5 {[%emt 0:00:30]} 2. Nf3 {[%emt 0:00:00]} e6 {[%emt 0:00:30]} 3. d4 {[%emt 0:00:00]} cxd4 {[%emt 0:00:30]} 4. c3 {[%emt 0:00:30]} dxc3 {[%emt 0:01:30]} 5. Nxc3 {[%emt 0:00:00]} a6 {[%emt 0:00:00]} 6. Bc4 {[%emt 0:00:00]} b5 {[%emt 0:00:00]} 7. Bb3 {[%emt 0:00:30]} Bb7 {[%emt 0:00:30]} 8. O-O {[%emt 0:00:30]} d6 {[%emt 0:00:00]} 9. Bf4 {[%emt 0:03:30]} Be7 {[%emt 0:00:00]} 10. Qe2 {[%emt 0:00:30]} Nf6 {[%emt 0:00:30]} 11. Rfd1 {[%emt 0:00:30]} Nbd7 {[%emt 0:00:30]} 12. Bxd6 {[%emt 0:00:30]} O-O {[%emt 0:01:30]} 13. e5 {[%emt 0:01:30]} Ne8 {[%emt 0:04:30]} 14. Ne4 {[%emt 0:04:30]} Bxe4 {[%emt 0:01:30]} 15. Qxe4 {[%emt 0:00:30]} Nxd6 {[%emt 0:00:00]} 16. exd6 {[%emt 0:00:30]} Bf6 {[%emt 0:03:00]} 17. Rac1 {[%emt 0:00:00]} Rc8 {[%emt 0:00:30]} 18. Bc2 {[%emt 0:05:00]} g6 {[%emt 0:00:30]} 19. b4 {[%emt 0:00:30]} Qb6 {[%emt 0:00:30]} 20. Bb3 {[%emt 0:08:30]} Rxc1 {[%emt 0:01:30]} 21. Rxc1 {[%emt 0:00:30]} Qxd6 {[%emt 0:00:30]} 22. Rc6 {[%emt 0:00:30]} Qb8 {[%emt 0:00:30]} 23. Rxa6 {[%emt 0:05:30]} Ne5 {[%emt 0:00:30]} 24. Nxe5 {[%emt 0:02:30]} Bxe5 {[%emt 0:00:30]} 25. g3 {[%emt 0:00:30]} Rc8 {[%emt 0:00:30]} 26. Kg2 {[%emt 0:00:30]} Qc7 {[%emt 0:00:30]} 27. Rxe6 {[%emt 0:01:30]} Bc3 {[%emt 0:01:30]} 28. Re7 {[%emt 0:00:30]} Qc6 {[%emt 0:00:00]} 29. Qxc6 {[%emt 0:00:30]} Rxc6 {[%emt 0:00:00]} 30. Rxf7 {[%emt 0:00:30]} Kh8 {[%emt 0:00:30]} 31. Rb7 {[%emt 0:00:00]} Bxb4 {[%emt 0:00:30]} 32. Rxb5 {[%emt 0:01:00]} Be1 {[%emt 0:00:00]} 33. Rb7 {[%emt 0:00:00]} Rf6 {[%emt 0:00:00]} 34. f3 {[%emt 0:01:00]} Rd6 {[%emt 0:00:30]} 35. h4 {[%emt 0:00:30]} h6 {[%emt 0:00:00]} 36. Re7 {[%emt 0:01:30]} Rd2+ {[%emt 0:00:00]} 37. Kh3 {[%emt 0:00:30]} Rd3 {[%emt 0:00:30]} 38. Rxe1 {[%emt 0:00:00]} 1-0

[Event "8th Ali Ipek Tournament 2020"]
[Site "Ankara"]
[Date "2020.03.04"]
[Round "1.15"]
[White "Babagil, Emre"]
[Black "Ercan, Mehmet Fahri"]
[Result "0-1"]
[ECO "B38"]
[WhiteElo "1316"]
[BlackElo "1810"]
[Annotator "NA"]
[PlyCount "88"]
[EventDate "2020.03.04"]
[EventType "swiss"]
[EventCountry "TUR"]
[SourceTitle "playchess.com"]
[Source "ChessBase"]
[SourceQuality "1"]
[TimeControl "5400+30"]

{[%evp 8,76,25,32767,55,30,30,20,53,49,50,36,64,37,81,63,127,96,126,12,67,46,43,28,21,32767,32767,13,68,32767,32767,49,60,70,32767,12,32767,32767,100,115,32767,-6,0,0,0,-13,0,-8,-6,-133,-125,-139,-150,-299,-337,-381,-383,-384,-410,-402,-343,-395,-412,32767,32767,-445,-524,-485,-1951,-6123,-12838]} 1. e4 {[%emt 0:00:30]} c5 {[%emt 0:00:30]} 2. Nf3 {[%emt 0:00:00]} d6 {[%emt 0:00:00]} 3. d4 {[%emt 0:01:00]} cxd4 {[%emt 0:00:00]} 4. Nxd4 {[%emt 0:00:00]} Nf6 {[%emt 0:00:00]} 5. f3 {[%emt 0:01:00]} a6 {[%emt 0:04:00]} ({Black should play} 5... e5 $11 6. Nb3 Be7) 6. c4 {[%emt 0:02:30]} Nc6 {[%emt 0:00:00]} 7. Nc3 {[%emt 0:01:30]} g6 {[%emt 0:00:00]} 8. Be3 {[%emt 0:02:30]} Bg7 {[%emt 0:00:30]} 9. Be2 {[%emt 0:00:30]} O-O {[%emt 0:00:30]} 10. O-O {[%emt 0:02:30]} h5 {[%emt 0:01:30] B38: Sicilian: Maroczy Bind with 5...Bg7 and 7...0-0.} 11. Qd2 {[%emt 0:02:30]} Be6 {[%emt 0:02:30]} (11... Bd7 $14) 12. Nxe6 {[%emt 0:04:30]} fxe6 {[%emt 0:00:30] [#]} 13. Bh6 $146 {[%emt 0:00:00]} ({White should try} 13. f4 $16) ({Predecessor:} 13. Rab1 Rc8 14. Rfc1 Ne5 15. Na4 Nfd7 16. b4 Nc6 17. c5 dxc5 18. Nxc5 Nxc5 19. Qxd8 Rfxd8 20. bxc5 {0-1 (55) Styggen-Tovizi,A Dos Hermanas 2003}) 13... Ne5 {[%emt 0:02:30]} 14. Bxg7 {[%emt 0:01:00]} Kxg7 {[%emt 0:00:00]} 15. f4 {[%emt 0:02:30]} Qb6+ {[%emt 0:01:00]} 16. Kh1 {[%emt 0:01:30]} Neg4 {[%emt 0:00:00]} 17. Bxg4 {[%emt 0:02:30]} Nxg4 {[%emt 0:03:00]} 18. Rae1 {[%emt 0:02:30]} Rac8 {[%emt 0:02:30]} 19. f5 {[%emt 0:04:30]} Rxc4 {[%emt 0:01:30]} 20. h3 $1 {[%emt 0:13:30]} Ne5 {[%emt 0:05:30]} 21. Qg5 {[%emt 0:00:30]} ({White should play} 21. fxe6 $16 Qd8 22. b3) 21... Rf6 {[%emt 0:03:30]} 22. fxe6 {[%emt 0:02:30]} Rxc3 {[%emt 0:19:30]} 23. bxc3 {[%emt 0:00:30]} Rxe6 {[%emt 0:09:30]} 24. Qe3 {[%emt 0:04:30]} ({White should play} 24. Qd2 $16) 24... Qxe3 {[%emt 0:02:30]} 25. Rxe3 {[%emt 0:00:00]} Nc4 {[%emt 0:00:00]} 26. Ree1 {[%emt 0:03:00]} Nd2 {[%emt 0:00:00]} 27. Rg1 {[%emt 0:06:30]} Nxe4 {[%emt 0:00:30]} 28. Rb1 {[%emt 0:00:30] [#]} (28. c4 $1 $11) 28... b5 $1 {[%emt 0:03:30]} ({Much worse is} 28... Nxc3 $6 29. Rxb7 Nxa2 30. Ra1 $11) 29. Rbc1 {[%emt 0:02:30]} d5 {[%emt 0:00:30]} 30. Rgd1 $2 {[%emt 0:00:30]} (30. Rc2 $17 {keeps fighting.}) 30... Nf2+ {[%emt 0:00:30] Double Attack} 31. Kg1 {[%emt 0:01:30]} Nxd1 {[%emt 0:00:30]} 32. Rxd1 {[%emt 0:00:00]} Re5 {[%emt 0:00:30]} 33. Kf2 {[%emt 0:00:00]} Kf6 {[%emt 0:00:30]} 34. Kf3 {[%emt 0:01:30]} Ke6 {[%emt 0:00:00]} 35. g4 {[%emt 0:01:30]} h4 {[%emt 0:00:00]} 36. Rd4 {[%emt 0:01:30]} Re1 {[%emt 0:01:30]} 37. Kf4 {[%emt 0:00:30] [#]} Re4+ $1 {[%emt 0:03:30]} 38. Kg5 {[%emt 0:00:30]} Rxd4 $19 {[%emt 0:00:30]} 39. cxd4 {[%emt 0:00:00]} Kf7 {[%emt 0:00:30]} 40. Kxh4 {[%emt 0:01:00]} b4 {[%emt 0:00:30]} 41. Kg3 {[%emt 0:00:30]} a5 {[%emt 0:00:30]} 42. Kf2 {[%emt 0:00:30]} a4 {[%emt 0:00:00]} 43. Ke2 {[%emt 0:00:00]} b3 {[%emt 0:01:00]} 44. axb3 {[%emt 0:00:00]} a3 {[%emt 0:00:00]} 0-1

[Event "8th Ali Ipek Tournament 2020"]
[Site "Ankara"]
[Date "2020.03.04"]
[Round "1.16"]
[White "Genc, Arda"]
[Black "Muti, Erol"]
[Result "1/2-1/2"]
[ECO "A12"]
[WhiteElo "1734"]
[BlackElo "1237"]
[Annotator "NA RC"]
[PlyCount "96"]
[EventDate "2020.03.04"]
[EventType "swiss"]
[EventCountry "TUR"]
[SourceTitle "playchess.com"]
[Source "ChessBase"]
[SourceQuality "1"]
[TimeControl "5400+30"]

1. d4 {[%emt 0:00:30]} Nf6 {[%emt 0:02:30]} 2. Nf3 {[%emt 0:00:00]} d5 {[%emt 0:00:00]} 3. e3 {[%emt 0:00:00]} Bg4 {[%emt 0:04:00]} 4. b3 {[%emt 0:01:30]} e6 {[%emt 0:00:30]} 5. Bb2 {[%emt 0:00:30]} Bb4+ {[%emt 0:01:30]} 6. c3 {[%emt 0:00:30]} Bd6 {[%emt 0:00:30]} 7. Be2 {[%emt 0:04:30]} O-O {[%emt 0:00:30]} 8. O-O {[%emt 0:00:30]} Nbd7 {[%emt 0:01:30]} 9. c4 {[%emt 0:00:30]} c6 {[%emt 0:00:30]} 10. h3 {[%emt 0:01:30]} Bh5 {[%emt 0:00:30]} 11. Nc3 {[%emt 0:03:30]} Rc8 {[%emt 0:00:30]} 12. Nd2 {[%emt 0:10:30]} Bxe2 {[%emt 0:02:30]} 13. Qxe2 {[%emt 0:00:30]} Bb8 {[%emt 0:00:30]} 14. f4 {[%emt 0:00:30]} Qc7 {[%emt 0:04:30]} 15. Rac1 {[%emt 0:05:30]} Rfe8 {[%emt 0:02:30]} 16. Qf3 {[%emt 0:03:30]} Nf8 {[%emt 0:03:30]} 17. g3 {[%emt 0:05:30]} Ng6 {[%emt 0:00:30]} 18. a4 {[%emt 0:12:30]} Qd6 {[%emt 0:02:30]} 19. c5 {[%emt 0:00:30]} Qc7 {[%emt 0:00:30]} 20. b4 {[%emt 0:02:30]} a6 {[%emt 0:01:30]} 21. g4 {[%emt 0:09:30]} Nh4 {[%emt 0:02:30]} 22. Qf2 {[%emt 0:00:30]} Ng6 {[%emt 0:00:30]} 23. g5 {[%emt 0:02:30]} Nd7 {[%emt 0:01:30]} 24. Nf3 {[%emt 0:05:30]} f6 {[%emt 0:00:30]} 25. h4 {[%emt 0:01:30]} Rf8 {[%emt 0:01:30]} 26. h5 {[%emt 0:05:30]} Ne7 {[%emt 0:00:30]} 27. b5 {[%emt 0:01:30]} Nf5 {[%emt 0:00:30]} 28. b6 {[%emt 0:01:30]} Qd8 {[%emt 0:00:30]} 29. Nd1 {[%emt 0:02:59]} Qe8 {[%emt 0:00:30]} 30. Qh2 {[%emt 0:00:29]} Qe7 {[%emt 0:03:30]} 31. Rc2 {[%emt 0:02:57]} fxg5 {[%emt 0:01:30]} 32. Nxg5 {[%emt 0:00:05]} h6 {[%emt 0:02:30]} 33. Nf3 {[%emt 0:00:35]} Nf6 {[%emt 0:00:30]} 34. Nh4 {[%emt 0:01:44]} Nxh4 {[%emt 0:01:30]} 35. Qxh4 {[%emt 0:00:31]} Qf7 {[%emt 0:00:30]} 36. Rh2 {[%emt 0:00:10]} Ne4 {[%emt 0:02:30]} 37. Nc3 {[%emt 0:01:41]} Nxc3 {[%emt 0:01:30]} 38. Bxc3 {[%emt 0:00:01]} Rce8 {[%emt 0:00:00]} 39. Qg4 {[%emt 0:10:07]} Qf5 {[%emt 0:01:00]} 40. Rg2 {[%emt 0:00:55]} Rf7 {[%emt 0:00:00]} 41. Qxf5 {[%emt 0:00:21]} exf5 {[%emt 0:00:00]} 42. Bd2 {[%emt 0:00:15]} Re6 {[%emt 0:01:30]} 43. Rf3 {[%emt 0:00:24]} Kh7 {[%emt 0:00:30]} 44. Rfg3 {[%emt 0:00:21]} Ree7 {[%emt 0:00:30]} 45. Rg6 {[%emt 0:00:30]} Re4 {[%emt 0:02:30]} 46. Kf2 {[%emt 0:00:30]} Kh8 {[%emt 0:00:30]} 47. Kf3 {[%emt 0:01:40]} Kh7 {[%emt 0:00:30]} 48. Re2 {[%emt 0:00:51]} Rfe7 {[%emt 0:00:30]} 1/2-1/2

[Event "8th Ali Ipek Tournament 2020"]
[Site "Ankara"]
[Date "2020.03.04"]
[Round "1.18"]
[White "Ersahince, Umut Utku"]
[Black "Sahin, Ali Haydar"]
[Result "1-0"]
[ECO "B07"]
[WhiteElo "1645"]
[BlackElo "1296"]
[Annotator "NA RC"]
[PlyCount "79"]
[EventDate "2020.03.04"]
[EventType "swiss"]
[EventCountry "TUR"]
[SourceTitle "playchess.com"]
[Source "ChessBase"]
[SourceQuality "1"]
[TimeControl "5400+30"]

1. e4 {[%emt 0:00:30]} d6 {[%emt 0:00:30]} 2. d4 {[%emt 0:00:00]} g6 {[%emt 0:00:00]} 3. Nf3 {[%emt 0:00:00]} Bg7 {[%emt 0:00:00]} 4. Bd3 {[%emt 0:00:00]} Nf6 {[%emt 0:00:30]} 5. O-O {[%emt 0:00:00]} O-O {[%emt 0:00:00]} 6. Nbd2 {[%emt 0:00:30]} Nc6 {[%emt 0:01:00]} 7. a4 {[%emt 0:00:30]} a5 {[%emt 0:00:30]} 8. Re1 {[%emt 0:06:30]} e5 {[%emt 0:00:30]} 9. dxe5 {[%emt 0:00:30]} dxe5 {[%emt 0:02:30]} 10. Bb5 {[%emt 0:01:30]} Bd7 {[%emt 0:05:30]} 11. Nc4 {[%emt 0:08:30]} Re8 {[%emt 0:11:30]} 12. b3 {[%emt 0:01:30]} Bg4 {[%emt 0:02:30]} 13. Qxd8 {[%emt 0:05:30]} Rexd8 {[%emt 0:02:30]} 14. Bxc6 {[%emt 0:01:30]} Bxf3 {[%emt 0:01:30]} 15. Bxb7 {[%emt 0:02:30]} Rab8 {[%emt 0:00:30]} 16. gxf3 {[%emt 0:00:30]} Rxb7 {[%emt 0:00:00]} 17. Nxa5 {[%emt 0:00:30]} Rb6 {[%emt 0:01:00]} 18. Nc4 {[%emt 0:02:30]} Re6 {[%emt 0:00:30]} 19. Be3 {[%emt 0:02:30]} Nh5 {[%emt 0:00:30]} 20. a5 {[%emt 0:04:30]} f5 {[%emt 0:00:00]} 21. a6 {[%emt 0:01:30]} Nf4 {[%emt 0:00:00]} 22. a7 {[%emt 0:03:30]} Ree8 {[%emt 0:00:30]} 23. Na5 {[%emt 0:08:30]} Ne6 {[%emt 0:02:30]} 24. Nc6 {[%emt 0:03:30]} Ra8 {[%emt 0:00:30]} 25. Ra5 {[%emt 0:05:30]} f4 {[%emt 0:00:30]} 26. Bc5 {[%emt 0:00:30]} Nd8 {[%emt 0:01:30]} 27. Nxd8 {[%emt 0:03:30]} Rexd8 {[%emt 0:00:30]} 28. Rea1 {[%emt 0:00:00]} h5 {[%emt 0:04:30]} 29. Rb5 {[%emt 0:00:00]} Bf8 {[%emt 0:01:30]} 30. Bxf8 {[%emt 0:01:30]} Kxf8 {[%emt 0:00:30]} 31. Rxe5 {[%emt 0:03:30]} h4 {[%emt 0:00:30]} 32. Kg2 {[%emt 0:00:30]} c6 {[%emt 0:01:30]} 33. Re6 {[%emt 0:03:30]} Kf7 {[%emt 0:00:30]} 34. Rxc6 {[%emt 0:00:00]} Rd2 {[%emt 0:00:30]} 35. h3 {[%emt 0:01:00]} Rd7 {[%emt 0:00:30]} 36. Rca6 {[%emt 0:00:00]} Rc7 {[%emt 0:00:30]} 37. R1a2 {[%emt 0:00:00]} Kg7 {[%emt 0:01:30]} 38. b4 {[%emt 0:00:30]} Kh6 {[%emt 0:00:30]} 39. b5 {[%emt 0:00:30]} Rc5 {[%emt 0:00:30]} 40. b6 {[%emt 0:00:00]} 1-0

[Event "8th Ali Ipek Tournament 2020"]
[Site "Ankara"]
[Date "2020.03.04"]
[Round "1.19"]
[White "Ozkoca, Can"]
[Black "Ceylan, Arda"]
[Result "0-1"]
[ECO "A23"]
[WhiteElo "1312"]
[BlackElo "1637"]
[Annotator "NA RC"]
[PlyCount "59"]
[EventDate "2020.03.04"]
[EventType "swiss"]
[EventCountry "TUR"]
[SourceTitle "playchess.com"]
[Source "ChessBase"]
[SourceQuality "1"]
[TimeControl "5400+30"]

1. c4 {[%emt 0:00:30]} Nf6 {[%emt 0:00:30]} 2. Nc3 {[%emt 0:00:00]} e5 {[%emt 0:00:30]} 3. g3 {[%emt 0:00:00]} c6 {[%emt 0:00:30]} 4. Bg2 {[%emt 0:01:30]} d5 {[%emt 0:00:30]} 5. cxd5 {[%emt 0:02:30]} cxd5 {[%emt 0:00:30]} 6. Qb3 {[%emt 0:01:30]} e4 {[%emt 0:07:30]} 7. e3 {[%emt 0:03:30]} Nc6 {[%emt 0:02:30]} 8. Nge2 {[%emt 0:06:30]} Rb8 {[%emt 0:24:30]} 9. O-O {[%emt 0:14:30]} Be6 {[%emt 0:06:30]} 10. Nf4 {[%emt 0:16:30]} Ne5 {[%emt 0:07:30]} 11. Nxe6 {[%emt 0:13:30]} fxe6 {[%emt 0:00:30]} 12. Qb5+ {[%emt 0:06:30]} Nfd7 {[%emt 0:06:30]} 13. b3 {[%emt 0:02:30]} Nf3+ {[%emt 0:07:30]} 14. Kh1 {[%emt 0:02:30]} Qf6 {[%emt 0:04:30]} 15. d4 {[%emt 0:06:00]} g5 {[%emt 0:06:30]} 16. Nxd5 {[%emt 0:08:03]} exd5 {[%emt 0:00:30]} 17. Qxd5 {[%emt 0:00:14]} Qc6 {[%emt 0:00:30]} 18. Qf5 {[%emt 0:02:54]} Qg6 {[%emt 0:01:30]} 19. Bh3 {[%emt 0:00:47]} Qxf5 {[%emt 0:03:07]} 20. Bxf5 {[%emt 0:00:38]} Nf6 {[%emt 0:00:04]} 21. Bb2 {[%emt 0:00:15]} Bd6 {[%emt 0:00:52]} 22. Rac1 {[%emt 0:01:37]} Ke7 {[%emt 0:01:35]} 23. Rc2 {[%emt 0:02:03]} g4 {[%emt 0:03:30]} 24. Rd1 {[%emt 0:03:45]} h5 {[%emt 0:01:57]} 25. d5 {[%emt 0:00:58]} h4 {[%emt 0:02:23]} 26. Bxf6+ {[%emt 0:01:22]} Kxf6 {[%emt 0:00:02]} 27. Bxg4 {[%emt 0:01:03]} Rbg8 {[%emt 0:05:11]} 28. Rg1 {[%emt 0:01:17]} hxg3 {[%emt 0:00:22]} 29. fxg3 {[%emt 0:00:39]} Bxg3 {[%emt 0:00:17]} 30. Rxg3 {[%emt 0:00:59]} 0-1

[Event "8th Ali Ipek Tournament 2020"]
[Site "Ankara"]
[Date "2020.03.04"]
[Round "1.20"]
[White "Ergani, Efe"]
[Black "Ataseven, Huseyin"]
[Result "1-0"]
[ECO "D79"]
[WhiteElo "1668"]
[BlackElo "1284"]
[Annotator "NA RC"]
[PlyCount "67"]
[EventDate "2020.03.04"]
[EventType "swiss"]
[EventCountry "TUR"]
[SourceTitle "playchess.com"]
[Source "ChessBase"]
[SourceQuality "1"]
[TimeControl "5400+30"]

1. Nf3 {[%emt 0:00:30]} Nf6 {[%emt 0:00:30]} 2. g3 {[%emt 0:00:00]} g6 {[%emt 0:01:30]} 3. Bg2 {[%emt 0:00:00]} Bg7 {[%emt 0:00:00]} 4. O-O {[%emt 0:00:30]} O-O {[%emt 0:00:00]} 5. d4 {[%emt 0:00:00]} d5 {[%emt 0:00:00]} 6. c4 {[%emt 0:00:00]} c6 {[%emt 0:03:00]} 7. cxd5 {[%emt 0:00:30]} cxd5 {[%emt 0:01:30]} 8. Ne5 {[%emt 0:00:30]} Nc6 {[%emt 0:01:30]} 9. Nc3 {[%emt 0:04:30]} Qb6 {[%emt 0:03:30]} 10. Nxc6 {[%emt 0:08:30]} bxc6 {[%emt 0:00:30]} 11. Na4 {[%emt 0:03:30]} Qa5 {[%emt 0:02:30]} 12. Bd2 {[%emt 0:02:30]} Qb5 {[%emt 0:02:30]} 13. Rc1 {[%emt 0:02:30]} Ne4 {[%emt 0:10:30]} 14. Be3 {[%emt 0:09:30]} Ba6 {[%emt 0:10:30]} 15. Re1 {[%emt 0:02:30]} f6 {[%emt 0:05:30]} 16. f3 {[%emt 0:07:30]} Nd6 {[%emt 0:01:30]} 17. Bf2 {[%emt 0:01:30]} f5 {[%emt 0:07:30]} 18. e3 {[%emt 0:07:30]} Qd3 {[%emt 0:06:30]} 19. Qxd3 {[%emt 0:00:30]} Bxd3 {[%emt 0:00:30]} 20. Nc5 {[%emt 0:00:30]} Bb5 {[%emt 0:07:30]} 21. a4 {[%emt 0:00:30]} Bc4 {[%emt 0:00:00]} 22. b3 {[%emt 0:00:30]} Rfb8 {[%emt 0:02:00]} 23. bxc4 {[%emt 0:00:30]} Nxc4 {[%emt 0:00:30]} 24. Ne6 {[%emt 0:01:30]} Rb2 {[%emt 0:00:30]} 25. Nxg7 {[%emt 0:01:30]} Kxg7 {[%emt 0:00:30]} 26. e4 {[%emt 0:00:30]} Kf7 {[%emt 0:01:30]} 27. exd5 {[%emt 0:00:30]} cxd5 {[%emt 0:00:30]} 28. f4 {[%emt 0:00:30]} e6 {[%emt 0:00:30]} 29. Rxc4 {[%emt 0:00:30]} Rab8 {[%emt 0:02:30]} 30. Rc7+ {[%emt 0:00:00]} Kf6 {[%emt 0:00:30]} 31. Rxa7 {[%emt 0:00:00]} Ra2 {[%emt 0:00:30]} 32. g4 {[%emt 0:03:30]} fxg4 {[%emt 0:00:30]} 33. Bh4+ {[%emt 0:00:30]} g5 {[%emt 0:00:30]} 34. Bxg5+ {[%emt 0:00:30]} 1-0

[Event "8th Ali Ipek Tournament 2020"]
[Site "Ankara"]
[Date "2020.03.05"]
[Round "2.5"]
[White "Akin, Yagizcinar"]
[Black "Yenice, Yusuf Erkan"]
[Result "1-0"]
[ECO "C00"]
[WhiteElo "1861"]
[BlackElo "1514"]
[Annotator "NA RC"]
[PlyCount "67"]
[EventDate "2020.03.04"]
[EventType "swiss"]
[EventCountry "TUR"]
[SourceTitle "playchess.com"]
[Source "ChessBase"]
[SourceQuality "1"]
[TimeControl "5400+30"]

{[%evp 8,63,15,20,52,12,13,9,11,10,29,22,49,45,61,24,33,54,79,72,32767,56,94,95,102,92,32767,118,32767,32767,145,141,32767,156,180,204,169,210,175,177,166,186,460,478,32767,32767,32767,32767,463,428,32767,32767,32767,32767,32767,32767,1018,796]} 1. e4 {[%emt 0:00:30]} c5 {[%emt 0:00:30]} 2. Nf3 {[%emt 0:00:30]} e6 {[%emt 0:00:30]} 3. g3 {[%emt 0:00:00]} Nc6 {[%emt 0:04:30]} 4. Bg2 {[%emt 0:00:00]} Be7 {[%emt 0:02:30]} 5. O-O {[%emt 0:00:00]} d6 {[%emt 0:04:30]} 6. c3 {[%emt 0:00:00]} Nf6 {[%emt 0:01:30]} 7. Qe2 {[%emt 0:00:30]} O-O {[%emt 0:02:30] C00: French: Unusual White 2nd moves.} 8. d4 {[%emt 0:00:30]} cxd4 {[%emt 0:02:30]} 9. cxd4 {[%emt 0:00:30]} e5 {[%emt 0:09:30]} 10. d5 {[%emt 0:00:30]} Nb8 {[%emt 0:02:30]} 11. h3 {[%emt 0:02:30]} b6 {[%emt 0:07:30] [#]} 12. b4 $146 {[%emt 0:02:30]} ({Predecessor:} 12. Re1 a5 13. Nc3 Nbd7 14. Nh2 Ba6 15. Qe3 b5 16. g4 Nc5 17. Ne2 b4 18. Rd1 {½-½ (36) Jablonski,N (2211)-Brethes,F (2080) Aix les Bains 2003}) 12... a5 {[%emt 0:07:30] [#]} 13. b5 $1 {[%emt 0:00:00]} Nbd7 {[%emt 0:02:30]} 14. Ba3 {[%emt 0:05:00]} g6 {[%emt 0:04:30]} 15. Nbd2 {[%emt 0:01:30]} Ne8 {[%emt 0:09:30]} 16. Nc4 {[%emt 0:00:30]} f6 {[%emt 0:01:30]} 17. Nfd2 {[%emt 0:07:30]} Nc5 {[%emt 0:05:30]} 18. Bxc5 {[%emt 0:00:30]} dxc5 {[%emt 0:00:30]} 19. f4 {[%emt 0:01:30]} exf4 {[%emt 0:03:30]} 20. gxf4 {[%emt 0:00:30]} Bd6 {[%emt 0:13:35]} 21. e5 {[%emt 0:00:30]} Bb8 {[%emt 0:01:19]} 22. d6 {[%emt 0:04:30]} Ra7 {[%emt 0:00:08]} 23. Rad1 {[%emt 0:01:30]} Be6 {[%emt 0:01:45]} 24. Ne4 {[%emt 0:01:30]} f5 $2 {[%emt 0:06:04]} (24... Raf7 25. a4 Kh8) 25. Ng5 {[%emt 0:00:30]} Ng7 {[%emt 0:01:28]} 26. Nxe6 {[%emt 0:00:30]} Nxe6 {[%emt 0:00:30]} 27. Bd5 {[%emt 0:00:00]} Re8 {[%emt 0:00:36]} 28. Bxe6+ {[%emt 0:02:00]} Rxe6 {[%emt 0:00:30]} 29. Qg2 {[%emt 0:00:00]} Rg7 {[%emt 0:02:27]} 30. Qd5 {[%emt 0:00:00]} Kf7 {[%emt 0:00:11]} 31. Kh2 {[%emt 0:04:30]} Ba7 {[%emt 0:01:17]} 32. Qb7+ $18 {[%emt 0:01:30]} Kf8 {[%emt 0:01:42]} 33. d7 {[%emt 0:00:30]} Bb8 {[%emt 0:00:13]} 34. Qxb8 {[%emt 0:00:00]} 1-0